{"text_format":"1","workbook":"xlsx","n_sheets":26,"sheets":["Student Information","Attendance ","PrePost Test & Describe & Model","Controlled Practice","Advanced Practice"," Generalization","Student 1 ","Student 2 ","Student 3","Student 4","Student 5","Student 6","Student 7","Student 8","Student 9","Student 10","Student 11)","Student 12","Student 13","Student 14","Student 15)","Student 16","Student 17","Student 18)","Student 19","Student 20"],"not_rendered":{"charts":100,"images":1,"macros":1,"external_links":0,"defined_names":0,"comments":0,"pivot_tables":0},"unopened":[],"bounds":{"document_bytes":16777216,"sheet_cells":100000,"rows_first":2000,"rows_last":500,"rows_between":2000,"halvings":0,"cell_chars":16384,"cell_head_chars":4096},"cells_cut":0,"cells_raw":0,"read":"whole","date_system":"1900"}

{"sheet":"Student Information","index":0,"n_rows":32,"n_cols":10,"rows_kept":32,"cut":false,"hidden":false,"merged":[[30,2,30,3],[31,2,31,3],[7,9,10,10]]}
[null,"Student Name","Grade","IEP ","SEX","ELL STUDENT","Ethnicity","Lexile Level","Literacy Measure"]
[1,"Mona"]
[2,"Peony"]
[3,"Patty"]
[4]
[5]
[6]
[7,null,null,null,null,null,null,null,null,"The Inference Strategy"]
[8]
[9]
[10]
[11]
[12]
[13]
[14]
[15]
[16]
[17]
[18]
[19]
[20]
[]
[]
[null,null,null,null,"IEPs",{"$f":"COUNTIF(D2:D21,\"Yes\")","v":0},"American Indian or Alaskan Native",{"$f":"COUNTIF(G2:G21,G24)","v":0}]
[null,null,null,null,"ELL",{"$f":"COUNTIF(F2:F21,\"Yes\")","v":0},"Asian or Pacific Islander",{"$f":"COUNTIF(G2:G21,G25)","v":0}]
[null,null,null,null,"Male",{"$f":"COUNTIF(E2:E21,\"Male\")","v":0},"Black, not of Hispanic Origin",{"$f":"COUNTIF(G2:G21,G26)","v":0}]
[null,null,null,null,"Female",{"$f":"COUNTIF(E2:E21,\"Female\")","v":0},"Hispanic",{"$f":"COUNTIF(G2:G21,G27)","v":0}]
[null,null,null,null,null,null,"White, not of Hispanic Origin",{"$f":"COUNTIF(G2:G21,G28)","v":0}]
[]
[null,"Teacher","Ms Brown"]
[null,"SCHOOL","Estacad"]
[null,"CLASS PERIOD:",4]

{"sheet":"Attendance ","index":1,"n_rows":26,"n_cols":3,"rows_kept":26,"cut":false,"hidden":false,"merged":[[1,0,1,7],[2,0,3,0],[2,2,2,14]]}
[]
["The Inference Strategy:  Attendance"]
[null,"DO NOT TYPE IN THIS COLUMN","Instructions:  Fill in each date of instruction.  Type an \"X\" in that column for each student instructed that day.  Total \"X\"'s are tabulated in COLUMN B.  "]
[null,"Dates of Instruction:","2015-09-01"]
["Student Name","TOTAL DAYS"]
["Kendle Example",{"$f":"COUNTA(C6:FC6)","v":1},"X"]
[{"$f":"'Student Information'!B2","v":"Mona"},0]
[{"$f":"'Student Information'!B3","v":"Peony"},0]
[{"$f":"'Student Information'!B4","v":"Patty"},0]
[{"$f":"'Student Information'!B5","v":0},0]
[{"$f":"'Student Information'!B6","v":0},0]
[{"$f":"'Student Information'!B7","v":0},0]
[{"$f":"'Student Information'!B8","v":0},0]
[{"$f":"'Student Information'!B9","v":0},0]
[{"$f":"'Student Information'!B10","v":0},0]
[{"$f":"'Student Information'!B11","v":0},0]
[{"$f":"'Student Information'!B12","v":0},0]
[{"$f":"'Student Information'!B13","v":0},0]
[{"$f":"'Student Information'!B14","v":0},0]
[{"$f":"'Student Information'!B15","v":0},0]
[{"$f":"'Student Information'!B16","v":0},0]
[{"$f":"'Student Information'!B17","v":0},0]
[{"$f":"'Student Information'!B18","v":0},0]
[{"$f":"'Student Information'!B19","v":0},0]
[{"$f":"'Student Information'!B20","v":0},0]
[{"$f":"'Student Information'!B21","v":0},0]

{"sheet":"PrePost Test & Describe & Model","index":2,"n_rows":30,"n_cols":19,"rows_kept":30,"cut":false,"hidden":false,"merged":[[27,2,27,3],[28,2,28,3],[29,2,29,3],[1,1,1,5]]}
[null,null,null,null,null,null,null,"Lesson 2 Passage 2 DATE","Lesson 2 Passage 3 DATE","Lesson 2 Passage 4 DATE","Lesson 3 Passage 2 DATE","Lesson 3 Passage 3 DATE","Lesson 3 Passage 4 DATE","Lesson 4 Passage 2 DATE","Lesson 4 Passage 3 DATE","Lesson 4 Passage 4 DATE","Lesson 5 Passage 2 DATE","Lesson 5 Passage 3 DATE","Lesson 5 Passage 4 DATEE"]
[null,"The Inference Strategy: Describe and Model"]
[null,"Student Name","Date of Pretest ","PreTest  Score","Date of Post Test","Post Test   Score","Time from Pretest to Post Test","Lesson 2 Passage 2 SCORE","Lesson 2 Passage 3 SCORE","Lesson 2 Passage 4 SCORE","Lesson 3 Passage 2 SCORE","Lesson 3 Passage 3 SCORE","Lesson 3 Passage 4 SCORE","Lesson 4 Passage 2 SCORE","Lesson 4 Passage 3 SCORE","Lesson 4 Passage 4 SCORE","Lesson 5 Passage 2 SCORE","Lesson 5 Passage 3 SCORE","Lesson 5 Passage 4 SCORE"]
[1,{"$f":"'Student Information'!B2","v":"Mona"}]
[2,{"$f":"'Student Information'!B3","v":"Peony"},null,null,null,null,null,null,null,null,null,null,null,null,null,null,null,null,99]
[3,{"$f":"'Student Information'!B4","v":"Patty"}]
[4,{"$f":"'Student Information'!B5","v":0}]
[5,{"$f":"'Student Information'!B6","v":0}]
[6,{"$f":"'Student Information'!B7","v":0}]
[7,{"$f":"'Student Information'!B8","v":0}]
[8,{"$f":"'Student Information'!B9","v":0}]
[9,{"$f":"'Student Information'!B10","v":0}]
[10,{"$f":"'Student Information'!B11","v":0}]
[11,{"$f":"'Student Information'!B12","v":0}]
[12,{"$f":"'Student Information'!B13","v":0}]
[13,{"$f":"'Student Information'!B14","v":0}]
[14,{"$f":"'Student Information'!B15","v":0}]
[15,{"$f":"'Student Information'!B16","v":0}]
[16,{"$f":"'Student Information'!B17","v":0}]
[17,{"$f":"'Student Information'!B18","v":0}]
[18,{"$f":"'Student Information'!B19","v":0}]
[19,{"$f":"'Student Information'!B20","v":0}]
[20,{"$f":"'Student Information'!B21","v":0},null,null,null,null,null,null,null,null,null,null,null,null,null,null,null,null,88]
["Total Completed",null,{"$f":"COUNTA(C5:C23)","v":0},{"$f":"COUNTA(D5:D23)","v":0},null,{"$f":"COUNTA(F5:F23)","v":0},{"$f":"E24-C24","v":0},{"$f":"COUNTA(H4:H23)","v":0},{"$f":"COUNTA(I5:I23)","v":0},0,null,{"$f":"COUNTA(L5:L23)","v":0},0,{"$f":"COUNTA(N5:N23)","v":0},0,null,{"$f":"COUNTA(Q5:Q23)","v":0},{"$f":"COUNTA(R5:R23)","v":0},2]
[null,"Average",null,{"$f":"AVERAGE(D5:D23)","v":{"$error":"#DIV/0!"}},null,{"$f":"AVERAGE(F5:F23)","v":{"$error":"#DIV/0!"}},null,{"$f":"AVERAGE(H5:H23)","v":{"$error":"#DIV/0!"}},{"$f":"AVERAGE(I4:I23)","v":{"$error":"#DIV/0!"}},{"$error":"#DIV/0!"},{"$f":"AVERAGE(K5:K23)","v":{"$error":"#DIV/0!"}},{"$error":"#DIV/0!"},{"$f":"AVERAGE(M5:M23)","v":{"$error":"#DIV/0!"}},{"$error":"#DIV/0!"},{"$f":"AVERAGE(O5:O23)","v":{"$error":"#DIV/0!"}},{"$error":"#DIV/0!"},{"$f":"AVERAGE(Q5:Q23)","v":{"$error":"#DIV/0!"}},{"$error":"#DIV/0!"},{"$f":"AVERAGE(S5:S23)","v":93.5}]
[]
[]
[null,"Teacher",{"$f":"'Student Information'!C30:D30","v":"Ms Brown"}]
[null,"SCHOOL",{"$f":"'Student Information'!C31:D31","v":"Estacad"}]
[null,"CLASS PERIOD:",{"$f":"'Student Information'!C32:D32","v":4}]

{"sheet":"Controlled Practice","index":3,"n_rows":28,"n_cols":29,"rows_kept":28,"cut":false,"hidden":false,"merged":[[0,6,0,14],[0,15,0,17]]}
[null,null,null,null,null,null,"The  Inference  Strategy Controlled Practice",null,null,null,null,null,null,null,null,"The Inference Strategy: Controlled Practice"]
[null,"Student Names","DATE CP 1","DATE FINAL CP","Days to complete","Date  CP 1","Grade Level","Infer 1","Date 2","Grade Level","Infer 2","Date 3","Grade Level","Infer 3","Date 4","Grade Level","OR 4","Date 5","Grade Level","OR 5","Date 6","Grade Level/Text Type ","OR 6","Date 7","Grade Level","OR 7","Date 8","Grade Level","OR 8"]
[null,"Robert","2013-04-01","2013-04-06",{"$f":"D3-C3","v":5},"2013-04-01",5,62,"2013-04-02",5,99,"2013-04-03",6,73,"2013-04-06",6,99,"2013-04-08",7,99]
[1,{"$f":"'Student Information'!B2","v":"Mona"},null,null,{"$f":"D4-C4","v":0}]
[2,{"$f":"'Student Information'!B3","v":"Peony"},null,null,{"$f":"D5-C5","v":0}]
[3,{"$f":"'Student Information'!B4","v":"Patty"},null,null,0]
[4,{"$f":"'Student Information'!B5","v":0},null,null,0]
[5,{"$f":"'Student Information'!B6","v":0},null,null,0]
[6,{"$f":"'Student Information'!B7","v":0},null,null,0]
[7,{"$f":"'Student Information'!B8","v":0},null,null,0]
[8,{"$f":"'Student Information'!B9","v":0},null,null,0]
[9,{"$f":"'Student Information'!B10","v":0},null,null,0]
[10,{"$f":"'Student Information'!B11","v":0},null,null,0]
[11,{"$f":"'Student Information'!B12","v":0},null,null,0]
[12,{"$f":"'Student Information'!B13","v":0},null,null,0]
[13,{"$f":"'Student Information'!B14","v":0},null,null,0]
[14,{"$f":"'Student Information'!B15","v":0},null,null,0]
[15,{"$f":"'Student Information'!B16","v":0},null,null,0]
[16,{"$f":"'Student Information'!B17","v":0},null,null,0]
[17,{"$f":"'Student Information'!B18","v":0},null,null,0]
[18,{"$f":"'Student Information'!B19","v":0},null,null,0]
[19,{"$f":"'Student Information'!B20","v":0},null,null,0]
[20,{"$f":"'Student Information'!B21","v":0},null,null,0]
["Average",null,null,null,{"$f":"AVERAGE(E4:E23)","v":0},null,null,{"$f":"AVERAGE(H4:H23)","v":{"$error":"#DIV/0!"}},null,null,{"$f":"AVERAGE(K4:K23)","v":{"$error":"#DIV/0!"}},null,{"$error":"#DIV/0!"},null,null,null,{"$f":"AVERAGE(Q4:Q23)","v":{"$error":"#DIV/0!"}},null,null,{"$f":"AVERAGE(T4:T23)","v":{"$error":"#DIV/0!"}},null,null,{"$f":"AVERAGE(W4:W23)","v":{"$error":"#DIV/0!"}},null,null,{"$f":"AVERAGE(Z4:Z23)","v":{"$error":"#DIV/0!"}},null,null,{"$f":"AVERAGE(AC4:AC23)","v":{"$error":"#DIV/0!"}}]
[]
[null,"Teacher",{"$f":"'Student Information'!C30","v":"Ms Brown"}]
[null,"School",{"$f":"'Student Information'!C31:D31","v":"Estacad"}]
[null,"Class Period",{"$f":"'Student Information'!C32:D32","v":4}]

{"sheet":"Advanced Practice","index":4,"n_rows":50,"n_cols":30,"rows_kept":50,"cut":false,"hidden":false,"merged":[[23,2,23,3],[24,2,24,3],[25,2,25,3],[23,4,24,12]]}
[null,"Student Names"," L4  1"," L4 2","L4 3","L4 4","L5 1","L5 2","L5 3","L5 4","L6 1","L6 2","L6 3","L6 4","L7 1","L7 2","L7 3","L7 4","L8 1 ","L8 2","L8 3","L8 4","L9 1","L9 2","L9 3","L9 4","L10 1","L10 2","L10 3","L10 4"]
[1,{"$f":"'Student Information'!B2","v":"Mona"}]
[2,{"$f":"'Student Information'!B3","v":"Peony"}]
[3,{"$f":"'Student Information'!B4","v":"Patty"}]
[4,{"$f":"'Student Information'!B5","v":0}]
[5,{"$f":"'Student Information'!B6","v":0}]
[6,{"$f":"'Student Information'!B7","v":0}]
[7,{"$f":"'Student Information'!B8","v":0}]
[8,{"$f":"'Student Information'!B9","v":0}]
[9,{"$f":"'Student Information'!B10","v":0}]
[10,{"$f":"'Student Information'!B11","v":0}]
[11,{"$f":"'Student Information'!B12","v":0}]
[12,{"$f":"'Student Information'!B13","v":0}]
[13,{"$f":"'Student Information'!B14","v":0}]
[14,{"$f":"'Student Information'!B15","v":0}]
[15,{"$f":"'Student Information'!B16","v":0}]
[16,{"$f":"'Student Information'!B17","v":0}]
[17,{"$f":"'Student Information'!B18","v":0}]
[18,{"$f":"'Student Information'!B19","v":0}]
[19,{"$f":"'Student Information'!B20","v":0}]
[20,{"$f":"'Student Information'!B21","v":0}]
[]
[]
[null,"Teacher",{"$f":"'Student Information'!C30","v":"Ms Brown"},null,"The Inference Strategy: Advanced Practice Scores and Dates"]
[null,"SCHOOL",{"$f":"'Student Information'!C31:D31","v":"Estacad"}]
[null,"CLASS PERIOD:",{"$f":"'Student Information'!C32:D32","v":4}]
[]
[null,"Student Names"," L4  1"," L4 2","L4 3","L4 4","L5 1","L5 2","L5 3","L5 4","L6 1","L6 2","L6 3","L6 4","L7 1","L7 2","L7 3","L7 4","L8 1 ","L8 2","L8 3","L8 4","L9 1","L9 2","L9 3","L9 4","L10 1","L10 2","L10 3","L10 4"]
[1,{"$f":"'Student Information'!B2","v":"Mona"},null,null,null,null,null,null,null,null,null,null,null,null,null,null,null,null,null,null,null,null,null,null,null,null,null,null,null,88]
[2,{"$f":"'Student Information'!B3","v":"Peony"}]
[3,{"$f":"'Student Information'!B4","v":"Patty"}]
[4,{"$f":"'Student Information'!B5","v":0}]
[5,{"$f":"'Student Information'!B6","v":0}]
[6,{"$f":"'Student Information'!B7","v":0}]
[7,{"$f":"'Student Information'!B8","v":0}]
[8,{"$f":"'Student Information'!B9","v":0}]
[9,{"$f":"'Student Information'!B10","v":0}]
[10,{"$f":"'Student Information'!B11","v":0}]
[11,{"$f":"'Student Information'!B12","v":0}]
[12,{"$f":"'Student Information'!B13","v":0}]
[13,{"$f":"'Student Information'!B14","v":0}]
[14,{"$f":"'Student Information'!B15","v":0}]
[15,{"$f":"'Student Information'!B16","v":0}]
[16,{"$f":"'Student Information'!B17","v":0}]
[17,{"$f":"'Student Information'!B18","v":0},9]
[18,{"$f":"'Student Information'!B19","v":0}]
[19,{"$f":"'Student Information'!B20","v":0}]
[20,{"$f":"'Student Information'!B21","v":0},null,null,null,null,null,null,null,null,null,null,null,null,null,null,null,null,null,null,null,null,null,null,null,null,null,null,null,66]
[null,"Completed",{"$f":"COUNT(C29:C48)","v":1},{"$f":"COUNT(D29:D48)","v":0},0,0,0,0,0,0,0,0,0,0,0,0,0,0,0,0,0,0,0,0,0,0,0,0,0,2]
[null,"Average",{"$f":"AVERAGE(C29:C48)","v":9},{"$f":"AVERAGE(D29:D48)","v":{"$error":"#DIV/0!"}},{"$error":"#DIV/0!"},{"$error":"#DIV/0!"},{"$error":"#DIV/0!"},{"$error":"#DIV/0!"},{"$error":"#DIV/0!"},{"$error":"#DIV/0!"},{"$error":"#DIV/0!"},{"$error":"#DIV/0!"},{"$error":"#DIV/0!"},{"$error":"#DIV/0!"},{"$error":"#DIV/0!"},{"$error":"#DIV/0!"},{"$error":"#DIV/0!"},{"$error":"#DIV/0!"},{"$error":"#DIV/0!"},{"$error":"#DIV/0!"},{"$error":"#DIV/0!"},{"$error":"#DIV/0!"},{"$error":"#DIV/0!"},{"$error":"#DIV/0!"},{"$error":"#DIV/0!"},{"$error":"#DIV/0!"},{"$error":"#DIV/0!"},{"$error":"#DIV/0!"},{"$error":"#DIV/0!"},77]

{"sheet":" Generalization","index":5,"n_rows":50,"n_cols":12,"rows_kept":50,"cut":false,"hidden":false,"merged":[[25,3,28,7]]}
[null,"Student Names","Generalization 1:      Grade Level of Passage","Generalization 1:     Score","Generalization 2:      Grade Level of Passage","Generalization 2:      Score","Generalization 3:      Grade Level of Passage","Generalization 3:      Score","Generalization 4:      Grade Level of Passage","Generalization 4:      Score","Generalization 5:      Grade Level of Passage","Generalization 5:      Score"]
[null,"Example"]
[1,{"$f":"'Student Information'!B2","v":"Mona"}]
[2,{"$f":"'Student Information'!B3","v":"Peony"}]
[3,{"$f":"'Student Information'!B4","v":"Patty"}]
[4,{"$f":"'Student Information'!B5","v":0}]
[5,{"$f":"'Student Information'!B6","v":0}]
[6,{"$f":"'Student Information'!B7","v":0}]
[7,{"$f":"'Student Information'!B8","v":0}]
[8,{"$f":"'Student Information'!B9","v":0}]
[9,{"$f":"'Student Information'!B10","v":0}]
[10,{"$f":"'Student Information'!B11","v":0}]
[11,{"$f":"'Student Information'!B12","v":0}]
[12,{"$f":"'Student Information'!B13","v":0}]
[13,{"$f":"'Student Information'!B14","v":0}]
[14,{"$f":"'Student Information'!B15","v":0}]
[15,{"$f":"'Student Information'!B16","v":0}]
[16,{"$f":"'Student Information'!B17","v":0}]
[17,{"$f":"'Student Information'!B18","v":0}]
[18,{"$f":"'Student Information'!B19","v":0}]
[19,{"$f":"'Student Information'!B20","v":0}]
[20,{"$f":"'Student Information'!B21","v":0}]
["Average",{"$f":"'Student Information'!B22","v":0},null,{"$f":"AVERAGE(D3:D21)","v":{"$error":"#DIV/0!"}},null,{"$f":"AVERAGE(F3:F22)","v":{"$error":"#DIV/0!"}},null,{"$f":"AVERAGE(H3:H22)","v":{"$error":"#DIV/0!"}},null,{"$f":"AVERAGE(J3:J22)","v":{"$error":"#DIV/0!"}},null,{"$f":"AVERAGE(L3:L22)","v":{"$error":"#DIV/0!"}}]
["Total Completed"]
[]
[null,"Teacher",{"$f":"'Student Information'!C30","v":"Ms Brown"},"The Inference Strategy: Generalization: Grade Levels, Scores and Dates"]
[null,"School",{"$f":"'Student Information'!C31","v":"Estacad"}]
[null,"Class Period",{"$f":"'Student Information'!C32","v":4}]
[]
[null,"Student Names"]
[1,{"$f":"'Student Information'!B2","v":"Mona"}]
[2,{"$f":"'Student Information'!B3","v":"Peony"}]
[3,{"$f":"'Student Information'!B4","v":"Patty"}]
[4,{"$f":"'Student Information'!B5","v":0}]
[5,{"$f":"'Student Information'!B6","v":0}]
[6,{"$f":"'Student Information'!B7","v":0}]
[7,{"$f":"'Student Information'!B8","v":0}]
[8,{"$f":"'Student Information'!B9","v":0}]
[9,{"$f":"'Student Information'!B10","v":0}]
[10,{"$f":"'Student Information'!B11","v":0}]
[11,{"$f":"'Student Information'!B12","v":0}]
[12,{"$f":"'Student Information'!B13","v":0}]
[13,{"$f":"'Student Information'!B14","v":0}]
[14,{"$f":"'Student Information'!B15","v":0}]
[15,{"$f":"'Student Information'!B16","v":0}]
[16,{"$f":"'Student Information'!B17","v":0}]
[17,{"$f":"'Student Information'!B18","v":0}]
[18,{"$f":"'Student Information'!B19","v":0}]
[19,{"$f":"'Student Information'!B20","v":0}]
[20,{"$f":"'Student Information'!B21","v":0}]

{"sheet":"Student 1 ","index":6,"n_rows":7,"n_cols":9,"rows_kept":7,"cut":false,"hidden":false,"merged":[[6,2,6,5],[0,6,2,12]]}
[null,null,null,null,null,null," The Inference  Strategy"]
[]
[]
[null,null,null,{"$f":"'Student Information'!B2","v":"Mona"}]
[null,null,null,null,null,null,null,"TEACHER:",{"$f":"'Student Information'!C30","v":"Ms Brown"}]
[null,null,null,null,null,null,null,"School:",{"$f":"'PrePost Test & Describe & Model'!C29","v":"Estacad"}]
[null,null,"Days From Pretest to Post Test",null,null,null,{"$f":"'PrePost Test & Describe & Model'!E4-'PrePost Test & Describe & Model'!C4","v":0},"CLASS PERIOD:",{"$f":"'PrePost Test & Describe & Model'!C30","v":4}]

{"sheet":"Student 2 ","index":7,"n_rows":7,"n_cols":9,"rows_kept":7,"cut":false,"hidden":false,"merged":[[6,2,6,5],[0,6,2,10]]}
[null,null,null,null,null,null,"The Inference Strategy"]
[]
[]
[null,null,null,{"$f":"'Student Information'!B3","v":"Peony"}]
[null,null,null,null,null,null,null,"TEACHER:",{"$f":"'Student Information'!C30","v":"Ms Brown"}]
[null,null,null,null,null,null,null,"School:",{"$f":"'PrePost Test & Describe & Model'!C29","v":"Estacad"}]
[null,null,"Days From Pretest to Post Test",null,null,null,{"$f":"'PrePost Test & Describe & Model'!E5-'PrePost Test & Describe & Model'!C5","v":0},"CLASS PERIOD:",{"$f":"'PrePost Test & Describe & Model'!C30","v":4}]

{"sheet":"Student 3","index":8,"n_rows":7,"n_cols":9,"rows_kept":7,"cut":false,"hidden":false,"merged":[[0,6,2,10],[6,2,6,5]]}
[null,null,null,null,null,null,"The Inference Strategy"]
[]
[]
[null,null,null,{"$f":"'Student Information'!B4","v":"Patty"}]
[null,null,null,null,null,null,null,"TEACHER:",{"$f":"'Student Information'!C30","v":"Ms Brown"}]
[null,null,null,null,null,null,null,"School:",{"$f":"'PrePost Test & Describe & Model'!C29","v":"Estacad"}]
[null,null,"Days From Pretest to Post Test",null,null,null,{"$f":"'PrePost Test & Describe & Model'!E6-'PrePost Test & Describe & Model'!C6","v":0},"CLASS PERIOD:",{"$f":"'PrePost Test & Describe & Model'!C30","v":4}]

{"sheet":"Student 4","index":9,"n_rows":7,"n_cols":9,"rows_kept":7,"cut":false,"hidden":false,"merged":[[0,6,2,10],[6,2,6,5]]}
[null,null,null,null,null,null,"The Inference Strategy"]
[]
[]
[null,null,null,{"$f":"'Student Information'!B5","v":0}]
[null,null,null,null,null,null,null,"TEACHER:",{"$f":"'Student Information'!C30","v":"Ms Brown"}]
[null,null,null,null,null,null,null,"School:",{"$f":"'PrePost Test & Describe & Model'!C29","v":"Estacad"}]
[null,null,"Days From Pretest to Post Test",null,null,null,{"$f":"'PrePost Test & Describe & Model'!E7-'PrePost Test & Describe & Model'!C7","v":0},"CLASS PERIOD:",{"$f":"'PrePost Test & Describe & Model'!C30","v":4}]

{"sheet":"Student 5","index":10,"n_rows":7,"n_cols":9,"rows_kept":7,"cut":false,"hidden":false,"merged":[[0,6,2,10],[6,2,6,5]]}
[null,null,null,null,null,null,"The Inference Strategy"]
[]
[]
[null,null,null,{"$f":"'Student Information'!B6","v":0}]
[null,null,null,null,null,null,null,"TEACHER:",{"$f":"'Student Information'!C30","v":"Ms Brown"}]
[null,null,null,null,null,null,null,"School:",{"$f":"'PrePost Test & Describe & Model'!C29","v":"Estacad"}]
[null,null,"Days From Pretest to Post Test",null,null,null,{"$f":"'PrePost Test & Describe & Model'!E8-'PrePost Test & Describe & Model'!C8","v":0},"CLASS PERIOD:",{"$f":"'PrePost Test & Describe & Model'!C30","v":4}]

{"sheet":"Student 6","index":11,"n_rows":7,"n_cols":9,"rows_kept":7,"cut":false,"hidden":false,"merged":[[0,6,2,10],[6,2,6,5]]}
[null,null,null,null,null,null,"The Inference Strategy"]
[]
[]
[null,null,null,{"$f":"'Student Information'!B7","v":0}]
[null,null,null,null,null,null,null,"TEACHER:",{"$f":"'Student Information'!C30","v":"Ms Brown"}]
[null,null,null,null,null,null,null,"School:",{"$f":"'PrePost Test & Describe & Model'!C29","v":"Estacad"}]
[null,null,"Days From Pretest to Post Test",null,null,null,{"$f":"'PrePost Test & Describe & Model'!E9-'PrePost Test & Describe & Model'!C9","v":0},"CLASS PERIOD:",{"$f":"'PrePost Test & Describe & Model'!C30","v":4}]

{"sheet":"Student 7","index":12,"n_rows":7,"n_cols":9,"rows_kept":7,"cut":false,"hidden":false,"merged":[[0,6,2,10],[6,2,6,5]]}
[null,null,null,null,null,null,"The Inference Strategy"]
[]
[]
[null,null,null,{"$f":"'Student Information'!B8","v":0}]
[null,null,null,null,null,null,null,"TEACHER:",{"$f":"'Student Information'!C30","v":"Ms Brown"}]
[null,null,null,null,null,null,null,"School:",{"$f":"'PrePost Test & Describe & Model'!C29","v":"Estacad"}]
[null,null,"Days From Pretest to Post Test",null,null,null,{"$f":"'PrePost Test & Describe & Model'!E10-'PrePost Test & Describe & Model'!C10","v":0},"CLASS PERIOD:",{"$f":"'PrePost Test & Describe & Model'!C30","v":4}]

{"sheet":"Student 8","index":13,"n_rows":7,"n_cols":9,"rows_kept":7,"cut":false,"hidden":false,"merged":[[0,6,2,10],[6,2,6,5]]}
[null,null,null,null,null,null,"The Inference Strategy"]
[]
[]
[null,null,null,{"$f":"'Student Information'!B9","v":0}]
[null,null,null,null,null,null,null,"TEACHER:",{"$f":"'Student Information'!C30","v":"Ms Brown"}]
[null,null,null,null,null,null,null,"School:",{"$f":"'PrePost Test & Describe & Model'!C29","v":"Estacad"}]
[null,null,"Days From Pretest to Post Test",null,null,null,{"$f":"'PrePost Test & Describe & Model'!E11-'PrePost Test & Describe & Model'!C11","v":0},"CLASS PERIOD:",{"$f":"'PrePost Test & Describe & Model'!C30","v":4}]

{"sheet":"Student 9","index":14,"n_rows":7,"n_cols":9,"rows_kept":7,"cut":false,"hidden":false,"merged":[[0,6,2,10],[6,2,6,5]]}
[null,null,null,null,null,null,"The Inference Strategy"]
[]
[]
[null,null,null,{"$f":"'Student Information'!B10","v":0}]
[null,null,null,null,null,null,null,"TEACHER:",{"$f":"'Student Information'!C30","v":"Ms Brown"}]
[null,null,null,null,null,null,null,"School:",{"$f":"'PrePost Test & Describe & Model'!C29","v":"Estacad"}]
[null,null,"Days From Pretest to Post Test",null,null,null,{"$f":"'PrePost Test & Describe & Model'!E12-'PrePost Test & Describe & Model'!C12","v":0},"CLASS PERIOD:",{"$f":"'PrePost Test & Describe & Model'!C30","v":4}]

{"sheet":"Student 10","index":15,"n_rows":7,"n_cols":9,"rows_kept":7,"cut":false,"hidden":false,"merged":[[0,6,2,10],[6,2,6,5]]}
[null,null,null,null,null,null,"The Inference Strategy"]
[]
[]
[null,null,null,{"$f":"'Student Information'!B11","v":0}]
[null,null,null,null,null,null,null,"TEACHER:",{"$f":"'Student Information'!C30","v":"Ms Brown"}]
[null,null,null,null,null,null,null,"School:",{"$f":"'PrePost Test & Describe & Model'!C29","v":"Estacad"}]
[null,null,"Days From Pretest to Post Test",null,null,null,{"$f":"'PrePost Test & Describe & Model'!E13-'PrePost Test & Describe & Model'!C13","v":0},"CLASS PERIOD:",{"$f":"'PrePost Test & Describe & Model'!C30","v":4}]

{"sheet":"Student 11)","index":16,"n_rows":7,"n_cols":9,"rows_kept":7,"cut":false,"hidden":false,"merged":[[0,6,2,10],[6,2,6,5]]}
[null,null,null,null,null,null,"The Inference Strategy"]
[]
[]
[null,null,null,{"$f":"'Student Information'!B12","v":0}]
[null,null,null,null,null,null,null,"TEACHER:",{"$f":"'Student Information'!C30","v":"Ms Brown"}]
[null,null,null,null,null,null,null,"School:",{"$f":"'PrePost Test & Describe & Model'!C29","v":"Estacad"}]
[null,null,"Days From Pretest to Post Test",null,null,null,{"$f":"'PrePost Test & Describe & Model'!E14-'PrePost Test & Describe & Model'!C14","v":0},"CLASS PERIOD:",{"$f":"'PrePost Test & Describe & Model'!C30","v":4}]

{"sheet":"Student 12","index":17,"n_rows":7,"n_cols":9,"rows_kept":7,"cut":false,"hidden":false,"merged":[[0,6,2,10],[6,2,6,5]]}
[null,null,null,null,null,null,"The Inference Strategy"]
[]
[]
[null,null,null,{"$f":"'Student Information'!B13","v":0}]
[null,null,null,null,null,null,null,"TEACHER:",{"$f":"' Generalization'!#REF!","v":{"$error":"#REF!"}}]
[null,null,null,null,null,null,null,"School:",{"$f":"'PrePost Test & Describe & Model'!C29","v":"Estacad"}]
[null,null,"Days From Pretest to Post Test",null,null,null,{"$f":"'PrePost Test & Describe & Model'!E15-'PrePost Test & Describe & Model'!C15","v":0},"CLASS PERIOD:",{"$f":"'PrePost Test & Describe & Model'!C30","v":4}]

{"sheet":"Student 13","index":18,"n_rows":7,"n_cols":9,"rows_kept":7,"cut":false,"hidden":false,"merged":[[0,6,2,10],[6,2,6,5]]}
[null,null,null,null,null,null,"The Inference Strategy"]
[]
[]
[null,null,null,{"$f":"'Student Information'!B14","v":0}]
[null,null,null,null,null,null,null,"TEACHER:",{"$f":"'Student Information'!C30","v":"Ms Brown"}]
[null,null,null,null,null,null,null,"School:",{"$f":"'PrePost Test & Describe & Model'!C29","v":"Estacad"}]
[null,null,"Days From Pretest to Post Test",null,null,null,{"$f":"'PrePost Test & Describe & Model'!E16-'PrePost Test & Describe & Model'!C16","v":0},"CLASS PERIOD:",{"$f":"'PrePost Test & Describe & Model'!C30","v":4}]

{"sheet":"Student 14","index":19,"n_rows":7,"n_cols":9,"rows_kept":7,"cut":false,"hidden":false,"merged":[[0,6,2,10],[6,2,6,5]]}
[null,null,null,null,null,null,"The Inference Strategy"]
[]
[]
[null,null,null,{"$f":"'Student Information'!B15","v":0}]
[null,null,null,null,null,null,null,"TEACHER:",{"$f":"' Generalization'!#REF!","v":{"$error":"#REF!"}}]
[null,null,null,null,null,null,null,"School:",{"$f":"'PrePost Test & Describe & Model'!C29","v":"Estacad"}]
[null,null,"Days From Pretest to Post Test",null,null,null,{"$f":"'PrePost Test & Describe & Model'!E17-'PrePost Test & Describe & Model'!C17","v":0},"CLASS PERIOD:",{"$f":"'PrePost Test & Describe & Model'!C30","v":4}]

{"sheet":"Student 15)","index":20,"n_rows":7,"n_cols":9,"rows_kept":7,"cut":false,"hidden":false,"merged":[[0,6,2,10],[6,2,6,5]]}
[null,null,null,null,null,null,"The Inference Strategy"]
[]
[]
[null,null,null,{"$f":"'Student Information'!B16","v":0}]
[null,null,null,null,null,null,null,"TEACHER:",{"$f":"'Student Information'!C30","v":"Ms Brown"}]
[null,null,null,null,null,null,null,"School:",{"$f":"'PrePost Test & Describe & Model'!C29","v":"Estacad"}]
[null,null,"Days From Pretest to Post Test",null,null,null,{"$f":"'PrePost Test & Describe & Model'!E18-'PrePost Test & Describe & Model'!C18","v":0},"CLASS PERIOD:",{"$f":"'PrePost Test & Describe & Model'!C30","v":4}]

{"sheet":"Student 16","index":21,"n_rows":7,"n_cols":9,"rows_kept":7,"cut":false,"hidden":false,"merged":[[0,6,2,10],[6,2,6,5]]}
[null,null,null,null,null,null,"The Inference Strategy"]
[]
[]
[null,null,null,{"$f":"'Student Information'!B17","v":0}]
[null,null,null,null,null,null,null,"TEACHER:",{"$f":"'Student Information'!C30","v":"Ms Brown"}]
[null,null,null,null,null,null,null,"School:",{"$f":"'PrePost Test & Describe & Model'!C29","v":"Estacad"}]
[null,null,"Days From Pretest to Post Test",null,null,null,{"$f":"'PrePost Test & Describe & Model'!E19-'PrePost Test & Describe & Model'!C19","v":0},"CLASS PERIOD:",{"$f":"'PrePost Test & Describe & Model'!C30","v":4}]

{"sheet":"Student 17","index":22,"n_rows":7,"n_cols":9,"rows_kept":7,"cut":false,"hidden":false,"merged":[[0,6,2,10],[6,2,6,5]]}
[null,null,null,null,null,null,"The Inference Strategy"]
[]
[]
[null,null,null,{"$f":"'Student Information'!B18","v":0}]
[null,null,null,null,null,null,null,"TEACHER:",{"$f":"'Student Information'!C30","v":"Ms Brown"}]
[null,null,null,null,null,null,null,"School:",{"$f":"'PrePost Test & Describe & Model'!C29","v":"Estacad"}]
[null,null,"Days From Pretest to Post Test",null,null,null,{"$f":"'PrePost Test & Describe & Model'!E20-'PrePost Test & Describe & Model'!C20","v":0},"CLASS PERIOD:",{"$f":"'PrePost Test & Describe & Model'!C30","v":4}]

{"sheet":"Student 18)","index":23,"n_rows":7,"n_cols":9,"rows_kept":7,"cut":false,"hidden":false,"merged":[[0,6,2,10],[6,2,6,5]]}
[null,null,null,null,null,null,"The Inference Strategy"]
[]
[]
[null,null,null,{"$f":"'Student Information'!B19","v":0}]
[null,null,null,null,null,null,null,"TEACHER:",{"$f":"'Student Information'!C30","v":"Ms Brown"}]
[null,null,null,null,null,null,null,"School:",{"$f":"'PrePost Test & Describe & Model'!C29","v":"Estacad"}]
[null,null,"Days From Pretest to Post Test",null,null,null,{"$f":"'PrePost Test & Describe & Model'!E21-'PrePost Test & Describe & Model'!C21","v":0},"CLASS PERIOD:",{"$f":"'PrePost Test & Describe & Model'!C30","v":4}]

{"sheet":"Student 19","index":24,"n_rows":7,"n_cols":9,"rows_kept":7,"cut":false,"hidden":false,"merged":[[0,6,2,10],[6,2,6,5]]}
[null,null,null,null,null,null,"The Inference Strategy"]
[]
[]
[null,null,null,{"$f":"'Student Information'!B20","v":0}]
[null,null,null,null,null,null,null,"TEACHER:",{"$f":"'Student Information'!C30","v":"Ms Brown"}]
[null,null,null,null,null,null,null,"School:",{"$f":"'PrePost Test & Describe & Model'!C29","v":"Estacad"}]
[null,null,"Days From Pretest to Post Test",null,null,null,{"$f":"'PrePost Test & Describe & Model'!E22-'PrePost Test & Describe & Model'!C22","v":0},"CLASS PERIOD:",{"$f":"'PrePost Test & Describe & Model'!C30","v":4}]

{"sheet":"Student 20","index":25,"n_rows":7,"n_cols":9,"rows_kept":7,"cut":false,"hidden":false,"merged":[[0,6,2,10],[6,2,6,5]]}
[null,null,null,null,null,null,"The Inference Strategy"]
[]
[]
[null,null,null,{"$f":"'Student Information'!B21","v":0}]
[null,null,null,null,null,null,null,"TEACHER:",{"$f":"'Student Information'!C30","v":"Ms Brown"}]
[null,null,null,null,null,null,null,"School:",{"$f":"'PrePost Test & Describe & Model'!C29","v":"Estacad"}]
[null,null,"Days From Pretest to Post Test",null,null,null,{"$f":"'PrePost Test & Describe & Model'!E23-'PrePost Test & Describe & Model'!C23","v":0},"CLASS PERIOD:",{"$f":"'PrePost Test & Describe & Model'!C30","v":4}]